[Event "44th Chess Olympiad Open 2022"]
[Site "Chennai"]
[Date "2022.08.01"]
[Round "4.8"]
[White "Sonis, Francesco"]
[Black "Sadhwani, Raunak"]
[Result "1/2-1/2"]
[WhiteElo "2543"]
[BlackElo "2611"]
[Annotator "TA"]
[PlyCount "60"]
[EventDate "2022.??.??"]
[TimeControl "60"]

{[%evp 19,60,9,12,10,12,11,23,19,18,22,24,14,25,16,11,11,18,11,11,11,11,18,35,
35,39,30,29,0,0,0,0,0,0,0,0,0,0,0,0,0,0,0,0]} 1. d4 {[%emt 0:00:03]} Nf6 {
[%emt 0:00:04]} 2. c4 {[%emt 0:00:04]} e6 {[%emt 0:00:03]} 3. Nf3 {[%emt 0:00:
00]} d5 {[%emt 0:00:04]} 4. Nc3 {[%emt 0:00:03]} Bb4 {[%emt 0:00:05]} 5. Bg5 {
[%emt 0:00:03]} h6 {[%emt 0:00:29]} 6. Bxf6 {[%emt 0:00:06]} Qxf6 {[%emt 0:00:
00]} 7. Qb3 {[%emt 0:00:04]} c5 {[%emt 0:05:00]} 8. cxd5 {[%emt 0:00:07]} exd5
{[%emt 0:00:06]} 9. a3 {[%emt 0:00:03]} Bxc3+ {[%emt 0:03:36]} 10. Qxc3 {
[%emt 0:00:05]} Nd7 {[%emt 0:05:39]} 11. e3 {[%emt 0:00:26] 11.g3 is not
played anymore. D38: Queen's Gambit Declined: Ragozin Defence (4 Nf3 Bb4).} a6
{[%emt 0:03:22]} 12. a4 {[%emt 0:00:16]} b6 {[%emt 0:02:02]} 13. Be2 {[%emt 0:
00:00] White has an edge.} O-O {[%emt 0:01:09]} 14. O-O {[%emt 0:00:54]} Bb7 {
[%emt 0:00:19]} 15. b3 {[%emt 0:00:19]} Rac8 {[%emt 0:00:40] [#]} 16. Qb2 $146
{[%emt 0:01:04]} ({Predecessor:} 16. Rfc1 Qd6 17. Qe1 Rfd8 18. Qd1 a5 19. Qe1
Ra8 20. Qc3 Rdc8 21. Qb2 Rc7 22. Qa3 {½-½ (60) Portisch,L (2585)-Zemerov,V 
(2430) Hungary 1996}) 16... Rc7 {[%emt 0:04:02]} 17. Rac1 {[%emt 0:03:14]} Rfc8
{[%emt 0:00:28]} 18. Rc3 {[%emt 0:07:04]} Nf8 {[%emt 0:09:34]} 19. Rfc1 {
[%emt 0:01:01]} Ne6 {[%emt 0:00:08]} 20. h3 {[%emt 0:05:59][%cal Yh2h3,Yh3h4]}
cxd4 {[%emt 0:01:55]} (20... a5 {looks sharper.} 21. Ne5 cxd4 22. Rxc7 Rxc7 23.
Rxc7 Nxc7 24. exd4 Qe7) 21. Rxc7 {[%emt 0:00:10]} Rxc7 {[%emt 0:00:00]} 22.
Rxc7 {[%emt 0:00:27]} Nxc7 {[%emt 0:00:04]} 23. Qxd4 {[%emt 0:00:00]} Qxd4 {
[%emt 0:00:06] The position is equal.} 24. Nxd4 $11 {[%emt 0:00:03] Endgame
KBN-KBN} a5 {[%emt 0:02:20]} 25. h4 {[%emt 0:01:28]} Kf8 {[%emt 0:01:53]} 26.
Kf1 {[%emt 0:01:52]} Ne6 {[%emt 0:00:55]} 27. Ke1 {[%emt 0:00:00]} Nxd4 {
[%emt 0:00:04]} 28. exd4 {[%emt 0:00:04]} g5 {[%emt 0:00:04]} 29. hxg5 {
[%emt 0:00:04]} hxg5 {[%emt 0:00:03]} 30. g4 {[%emt 0:00:06]} Ke7 {[%emt 0:00:
05] Weighted Error Value: White=0.03 (flawless) /Black=0.03 (flawless)} 1/2-1/2

[Event "44th Chess Olympiad Open 2022"]
[Site "Chennai"]
[Date "2022.08.01"]
[Round "4.9"]
[White "Sargissian, Gabriel"]
[Black "Ragger, Markus"]
[Result "1/2-1/2"]
[WhiteElo "2698"]
[BlackElo "2647"]
[Annotator "TA"]
[PlyCount "66"]
[EventDate "2022.??.??"]
[TimeControl "60"]

{[%evp 21,66,-7,2,9,3,5,2,5,8,0,0,0,0,0,0,0,41,0,0,5,5,0,0,0,0,0,0,0,0,0,0,0,0,
0,0,0,0,0,0,0,0,0,0,0,0,0,0]} 1. Nf3 {[%emt 0:00:05]} Nf6 {[%emt 0:00:06]} 2.
c4 {[%emt 0:00:35]} c5 {[%emt 0:00:04]} 3. Nc3 {[%emt 0:00:32]} e6 {[%emt 0:00:
00]} 4. e3 {[%emt 0:02:09]} Nc6 {[%emt 0:00:19]} 5. d4 {[%emt 0:00:56]} d5 {
[%emt 0:00:05]} 6. cxd5 {[%emt 0:00:59]} exd5 {[%emt 0:00:18]} 7. Bb5 {[%emt 0:
00:00]} cxd4 {[%emt 0:00:17]} 8. exd4 {[%emt 0:00:25]} Bd6 {[%emt 0:00:13]} 9.
O-O {[%emt 0:03:12]} O-O {[%emt 0:00:33]} 10. Bg5 {[%emt 0:00:20]} Bg4 {
[%emt 0:01:01]} 11. Be2 {[%emt 0:00:27]} Be7 {[%emt 0:08:17] 11...h6 is a
critical line.} 12. Re1 {[%emt 0:02:55] B14: Caro-Kann: Panov-Botvinnik Attack
with 5...e6 and 5...g6.} h6 {[%emt 0:07:08]} 13. Bh4 {[%emt 0:00:35] [#]} Ne4
$146 {[%emt 0:14:25]} ({Predecessor:} 13... Re8 14. h3 Bh5 15. Ne5 Bxe2 16.
Rxe2 Rc8 17. Qd3 Qb6 18. Bxf6 Bxf6 19. Nxd5 Qxd4 20. Nxf6+ gxf6 {1-0 (75)
Niemann,H (2571)-Yoo,C (2479) Chess.com INT 2021}) 14. Bxe7 {[%emt 0:03:02]}
Nxe7 {[%emt 0:01:26]} 15. Qb3 {[%emt 0:19:45]} Bxf3 {[%emt 0:27:48]} 16. Bxf3 {
[%emt 0:00:23]} Nd2 {[%emt 0:00:01]} 17. Qd1 {[%emt 0:02:29]} Nxf3+ {[%emt 0:
00:00]} 18. Qxf3 {[%emt 0:00:07]} Nc6 {[%emt 0:02:21]} 19. Nxd5 {[%emt 0:21:26]
} Nxd4 {[%emt 0:01:35] The position is equal.} 20. Qe4 {[%emt 0:03:40]} Nc6 {
[%emt 0:04:07]} 21. Nb4 {[%emt 0:01:02]} Nxb4 {[%emt 0:04:52]} 22. Qxb4 {
[%emt 0:01:05]} Qf6 {[%emt 0:02:07]} 23. Rad1 {[%emt 0:06:08]} b6 {[%emt 0:00:
00]} 24. Rd6 {[%emt 0:01:15]} Qf5 {[%emt 0:00:41]} 25. Qa4 {[%emt 0:04:27]}
Rac8 {[%emt 0:03:15]} 26. Rd2 {[%emt 0:01:28] Prevents Rc2.} Rc7 {[%emt 0:00:
00]} 27. h3 {[%emt 0:00:49]} Rfc8 {[%emt 0:00:22]} 28. Qg4 {[%emt 0:01:15]}
Qxg4 {[%emt 0:00:51]} 29. hxg4 {[%emt 0:00:07]} Kf8 {[%emt 0:00:32]} 30. Kf1 {
[%emt 0:03:17]} Rc2 {[%emt 0:02:06]} 31. Rd7 {[%emt 0:03:22]} Re8 {[%emt 0:00:
00]} 32. Rxe8+ {[%emt 0:00:47]} Kxe8 {[%emt 0:00:05]} 33. Rxa7 {[%emt 0:00:06]}
Rxb2 {[%emt 0:00:04] A balanced but interesting game. Weighted Error Value:
White=0.03 (flawless) /Black=0.02 (flawless)} 1/2-1/2

[Event "44th Chess Olympiad Open 2022"]
[Site "Chennai"]
[Date "2022.08.01"]
[Round "4.9"]
[White "Ter-Sahakyan, Samvel"]
[Black "Blohberger, Felix"]
[Result "1-0"]
[WhiteElo "2625"]
[BlackElo "2492"]
[Annotator "TA"]
[PlyCount "117"]
[EventDate "2022.??.??"]
[TimeControl "60"]

{[%evp 9,117,4,16,15,24,10,10,20,20,17,21,31,27,23,37,31,33,41,20,27,38,22,21,
0,14,10,18,6,14,12,14,0,0,0,0,-22,-25,-27,0,0,0,0,0,6,-4,-9,-6,-9,0,0,23,0,42,
42,39,0,21,28,26,25,31,0,0,0,0,0,0,0,22,0,32,6,142,164,161,147,152,78,225,225,
225,225,226,222,378,365,335,326,336,280,569,540,1086,1020,1371,927,1597,1333,
4874,4874,4874,4874,4836,4822,4789,4614,2395,1325,737,693]} 1. e4 e5 2. Nf3 Nc6
3. Bb5 Nf6 4. d3 Bc5 5. c3 O-O 6. O-O {C65: Ruy Lopez: Berlin Defence (3...Nf6)
, unusual lines and 4 0-0 Bc5.} Re8 7. Bg5 a6 8. Ba4 {The position is equal.}
b5 9. Bb3 d6 10. Nbd2 (10. d4 $5 {[%cal Rb3d5]} Bb6 11. Bd5 $11) 10... h6 11.
Bh4 g5 12. Bg3 Bb6 13. Re1 Ne7 14. Nf1 Ng6 {[#]} 15. Ne3 $146 (15. a4 $5 {
[%cal Ra4b5]}) ({Predecessor:} 15. a4 Bd7 16. Ne3 Nf4 17. h4 g4 18. Nh2 h5 19.
Qd2 Nh7 20. Nf5 Bxf5 21. exf5 {½-½ (56) Rudzinska,M (2003)-Urh,Z (2156) Riga
2018}) 15... Bxe3 16. Rxe3 Kg7 17. d4 Qe7 18. a4 Bd7 19. Re1 c5 20. Bc2 Bg4 21.
h3 Bh5 22. Re3 Nf4 23. Qd2 Rac8 24. d5 Bg6 25. Nh2 c4 26. Nf1 Nd7 27. f3 Nc5
28. Bf2 h5 29. Kh2 h4 30. Bg1 Rb8 31. Ree1 Rec8 32. Ne3 Qd7 {[%cal Rc5a4]} ({
Don't do} 32... Nxa4 33. Bxa4 bxa4 34. Rxa4 $16) 33. axb5 axb5 34. Ra3 Ncd3 {
Pair of Knights!} 35. Rb1 (35. Bxd3 $5 cxd3 36. Rea1 $14) 35... Ra8 36. Rxa8
Rxa8 37. b3 Qc7 38. bxc4 bxc4 39. Qd1 {[%cal Yb1b6]} Ra3 40. Ra1 $36 {White
has the initiative.} (40. Rb6 $5 {[%cal Rb6c6]}) 40... Rxc3 (40... Rxa1 $11 41.
Qxa1 Ne2) 41. Qd2 $16 Rb3 42. Bxb3 cxb3 43. Rb1 b2 {This costs Black the game.}
(43... Qb8 $16) 44. Nd1 $1 $18 (44. Rxb2 Nxb2 45. Qxb2 Qa5 $11) 44... f5 {[#]}
45. exf5 ({Resist} 45. Nxb2 $6 Nxb2 46. Rxb2 fxe4 $16) 45... Bxf5 46. Nxb2 {
Really sharp!} Nxb2 (46... Qb7 47. Qc2 Qf7) 47. Rxb2 Bxh3 {[#]} 48. Be3 $1 ({
Not} 48. gxh3 Qd7 49. Be3 Qxh3+ 50. Kg1 Qg3+ 51. Kh1 Qxf3+ 52. Kg1 Qg4+ 53. Kf1
Qh3+ 54. Kg1 Qg4+ 55. Kf1 Qh3+ 56. Kg1 Qg3+ 57. Kh1 Qh3+ 58. Kg1 $11) 48... Bf5
49. Ra2 {And now Ra7 would win.} Qc4 $2 (49... Kg6 {was necessary.} 50. Bxf4
gxf4) 50. Ra7+ {White is clearly winning.} Kg6 51. Bxf4 Qxf4+ 52. Qxf4 exf4 {
Endgame KR-KB} 53. Ra6 g4 54. Rxd6+ Kg5 55. Rd8 g3+ 56. Kh1 Kf6 57. d6 {
Threatening mate with Rf8+.} Ke5 58. d7 {Intending Re8+ and mate.} Kd6 59. Rf8
{Weighted Error Value: White=0.06 (flawless) / Black=0.24 (precise)} 1-0

[Event "44th Chess Olympiad Open 2022"]
[Site "Chennai"]
[Date "2022.08.01"]
[Round "4.9"]
[White "Dragnev, Valentin"]
[Black "Melkumyan, Hrant"]
[Result "0-1"]
[WhiteElo "2557"]
[BlackElo "2634"]
[Annotator "TA"]
[PlyCount "101"]
[EventDate "2022.??.??"]
[TimeControl "60"]

{[%evp 9,101,16,23,28,13,10,18,25,26,13,37,19,33,35,39,23,15,21,19,18,35,18,29,
2,10,0,17,11,14,14,14,-4,0,0,0,-15,-22,-28,-6,-2,5,7,20,-11,9,0,-9,-9,0,-17,33,
0,29,29,29,11,35,33,35,0,56,0,0,0,0,0,14,11,10,5,20,4,153,137,145,167,153,131,
217,232,225,232,226,225,295,302,302,300,295,291,387,387,336,321]} 1. e4 {
[%emt 0:00:04]} e5 {[%emt 0:00:08]} 2. Nf3 {[%emt 0:00:10]} Nc6 {[%emt 0:00:07]
} 3. Bb5 {[%emt 0:00:41]} Nf6 {[%emt 0:00:09]} 4. d3 {[%emt 0:02:38]} Bc5 {
[%emt 0:00:09]} 5. c3 {[%emt 0:02:22]} O-O {[%emt 0:00:19]} 6. O-O {[%emt 0:00:
00] C65: Ruy Lopez: Berlin Defence (3...Nf6), unusual lines and 4 0-0 Bc5.} Re8
{[%emt 0:00:39]} 7. Bg5 {[%emt 0:04:53][%cal Yc1g5,Yg5h4,Yh4g3]} a6 {[%emt 0:
07:24]} 8. Ba4 {[%emt 0:04:59] The position is equal.} b5 {[%emt 0:00:00]} 9.
Bb3 {[%emt 0:06:24]} d6 {[%emt 0:00:47]} 10. Nbd2 {[%emt 0:05:00]} h6 {[%emt 0:
02:46]} 11. Bh4 {[%emt 0:00:31]} g5 {[%emt 0:00:51]} 12. Bg3 {[%emt 0:00:00]}
Bb6 {[%emt 0:04:21]} 13. Re1 {[%emt 0:05:09]} Ne7 {[%emt 0:01:53]} 14. Nf1 {
[%emt 0:07:11]} Ng6 {[%emt 0:00:59] [#]} 15. Ne3 $146 {[%emt 0:00:55]} ({
Predecessor:} 15. a4 Bd7 16. Ne3 Nf4 17. h4 g4 18. Nh2 h5 19. Qd2 Nh7 20. Nf5
Bxf5 21. exf5 {½-½ (56) Rudzinska,M (2003)-Urh,Z (2156) Riga 2018}) 15...
Bxe3 {[%emt 0:04:44]} 16. Rxe3 {[%emt 0:11:59]} Kg7 {[%emt 0:13:49]} 17. d4 {
[%emt 0:06:22]} Qe7 {[%emt 0:02:29]} 18. a4 {[%emt 0:05:51]} Bd7 {[%emt 0:00:
00]} 19. Re1 {[%emt 0:02:38]} c5 {[%emt 0:06:18]} 20. Bc2 {[%emt 0:06:03]} Bg4
{[%emt 0:21:02][%cal Yd7g4,Yg4h5,Yh5g6]} 21. h3 {[%emt 0:05:48]} Bh5 {[%emt 0:
00:12]} 22. Re3 {[%emt 0:03:39]} Nf4 {[%emt 0:04:20]} 23. Qd2 {[%emt 0:00:00]}
Rac8 {[%emt 0:06:58]} 24. d5 {[%emt 0:04:01]} Bg6 {[%emt 0:01:52]} 25. Nh2 {
[%emt 0:02:11]} c4 {[%emt 0:04:51]} 26. Nf1 {[%emt 0:02:01]} Nd7 {[%emt 0:00:
00]} 27. f3 {[%emt 0:02:39]} Nc5 {[%emt 0:00:10]} 28. Bf2 {[%emt 0:00:29]} h5 {
[%emt 0:03:03]} 29. Kh2 {[%emt 0:03:09]} h4 {[%emt 0:00:11]} (29... bxa4 $11
30. Ree1 Ncd3) 30. Bg1 {[%emt 0:00:45]} Rb8 {[%emt 0:02:07]} 31. Ree1 {[%emt 0:
01:02]} Rec8 {[%emt 0:02:43]} 32. Ne3 {[%emt 0:00:56]} Qd7 {[%emt 0:00:00]
[%cal Rb5a4]} (32... Nxa4 33. Bxa4 bxa4 34. Rxa4 $16) 33. axb5 {[%emt 0:00:00]}
axb5 {[%emt 0:00:07]} 34. Ra3 {[%emt 0:00:30]} Ncd3 {[%emt 0:01:51]} ({Better
is} 34... Ra8 $11) 35. Rb1 {[%emt 0:01:01]} (35. Bxd3 $14 cxd3 36. Rea1) 35...
Ra8 $11 {[%emt 0:00:39]} 36. Rxa8 {[%emt 0:00:40]} Rxa8 {[%emt 0:00:05]} 37. b3
{[%emt 0:00:06]} Qc7 {[%emt 0:00:21]} 38. bxc4 {[%emt 0:00:25]} bxc4 {[%emt 0:
00:04]} 39. Qd1 {[%emt 0:00:13][%cal Yb1b6]} Ra3 {[%emt 0:01:35]} 40. Ra1 $36 {
[%emt 0:00:48] White has some pressure.} Rxc3 {[%emt 0:00:00]} (40... Rxa1 $11
{remains equal.} 41. Qxa1 Ne2) 41. Qd2 $16 {[%emt 0:02:45]} Rb3 {[%emt 0:02:12]
} 42. Bxb3 {[%emt 0:07:51]} cxb3 {[%emt 0:01:45]} 43. Rb1 {[%emt 0:00:22]} b2 {
[%emt 0:03:09]} (43... Qb8 $16 {keeps fighting.}) 44. Nd1 $1 $18 {[%emt 0:06:
22]} ({Not} 44. Rxb2 Nxb2 45. Qxb2 Qa5 $11) 44... f5 {[%emt 0:11:10] [#]} 45.
exf5 {[%emt 0:04:48]} ({Resist} 45. Nxb2 $6 Nxb2 46. Rxb2 fxe4) 45... Bxf5 {
[%emt 0:00:08]} 46. Nxb2 {[%emt 0:00:06]} Nxb2 {[%emt 0:00:00]} 47. Rxb2 {
[%emt 0:00:19]} Bxh3 {[%emt 0:00:10] [#]} 48. Be3 $1 {[%emt 0:04:06]} ({
Worse is} 48. gxh3 Qd7 49. Be3 Qxh3+ 50. Kg1 Qg3+ 51. Kh1 Qxf3+ 52. Kg1 Qg4+
53. Kf1 Qh3+ 54. Kg1 Qg4+ 55. Kf1 Qh3+ 56. Kg1 Qg3+ 57. Kh1 Qh3+ 58. Kg1 $11)
48... Bf5 {[%emt 0:00:21]} 49. Ra2 {[%emt 0:02:40] Hoping for Ra7.} Qc4 {
[%emt 0:02:40]} 50. Ra7+ {[%emt 0:02:34]} Kg6 {[%emt 0:01:07]} 51. Bxf4 {
[%emt 0:00:16] Weighted Error Value: White=0.06 (flawless) /Black=0.18 (very
precise) . Loss on time!?} 0-1

[Event "44th Chess Olympiad Open 2022"]
[Site "Chennai"]
[Date "2022.08.01"]
[Round "4.9"]
[White "Horvath, Dominik"]
[Black "Hovhannisyan, Robert"]
[Result "1/2-1/2"]
[WhiteElo "2488"]
[BlackElo "2591"]
[Annotator "TA"]
[PlyCount "74"]
[EventDate "2022.??.??"]
[TimeControl "60"]

{[%evp 9,74,15,6,0,0,-6,0,-18,0,0,0,0,0,0,0,0,0,0,5,10,10,9,13,7,8,6,11,4,6,8,
12,13,14,0,0,0,8,0,0,0,0,0,0,0,0,0,0,0,0,0,0,0,0,0,0,0,0,0,0,0,0,0,0,0,0,0,
1238]} 1. e4 {[%emt 0:00:01]} e5 {[%emt 0:00:10]} 2. Nf3 {[%emt 0:00:07]} Nc6 {
[%emt 0:00:07]} 3. Bb5 {[%emt 0:00:06]} Nf6 {[%emt 0:00:15][%cal Yg8f6,Yf6e4,
Ye4d6]} 4. O-O {[%emt 0:00:30]} Nxe4 {[%emt 0:00:07]} 5. Re1 {[%emt 0:00:00]}
Nd6 {[%emt 0:00:13] The position is equal.} 6. a4 {[%emt 0:02:24] C67: Ruy
Lopez: Berlin Defence: 4 0-0 Nxe4.} Be7 {[%emt 0:01:01] next ...e4 is good for
Black.} 7. Nc3 {[%emt 0:00:07] Inhibits e4.} a6 {[%emt 0:01:22]} 8. Bf1 {
[%emt 0:00:04]} e4 {[%emt 0:01:17]} 9. Nxe4 {[%emt 0:00:12]} Nxe4 {[%emt 0:00:
00]} 10. Rxe4 {[%emt 0:00:05]} d5 {[%emt 0:00:06]} 11. Re1 {[%emt 0:00:05]} Bg4
{[%emt 0:00:20] [#]} 12. Be2 $146 {[%emt 0:01:08]} ({Predecessor:} 12. h3 Bh5
13. Be2 O-O 14. d4 Bd6 15. Ne5 Bxe2 16. Rxe2 Nxe5 17. dxe5 Be7 18. Rd2 {
½-½ (49) Harikrishna,P (2717)-So,W (2772) Berlin 2022}) 12... O-O {[%emt 0:
00:00]} 13. d4 {[%emt 0:05:38]} Re8 {[%emt 0:07:50]} 14. Bf4 {[%emt 0:06:39]}
Bd6 {[%emt 0:03:15]} 15. Bxd6 {[%emt 0:00:05]} Qxd6 {[%emt 0:00:13]} 16. c3 {
[%emt 0:00:05]} Re7 {[%emt 0:02:28]} 17. h3 {[%emt 0:02:09]} Bh5 {[%emt 0:00:
00]} 18. Nh4 {[%emt 0:13:20]} Bxe2 {[%emt 0:03:11]} 19. Rxe2 {[%emt 0:00:06]}
Qd7 {[%emt 0:07:03] Prevents Nf5.} 20. Rxe7 {[%emt 0:01:07]} Nxe7 {[%emt 0:00:
00]} 21. Qb3 {[%emt 0:01:20]} c6 {[%emt 0:03:19]} 22. Re1 {[%emt 0:02:07]} Rd8
{[%emt 0:04:19]} 23. Qb4 {[%emt 0:03:57]} Nc8 {[%emt 0:01:37]} 24. Nf3 {
[%emt 0:00:03]} Nd6 {[%emt 0:02:55]} 25. Nd2 {[%emt 0:06:35]} Re8 {[%emt 0:00:
00]} 26. Re5 {[%emt 0:04:15][%cal Yb4d6] [#] And now Qxd6! would win.} f6 {
[%emt 0:01:37]} 27. Rxe8+ {[%emt 0:00:04]} Nxe8 $11 {[%emt 0:00:06] Endgame
KQN-KQN} 28. Nb3 {[%emt 0:00:26]} Nd6 {[%emt 0:00:55]} 29. Nc5 {[%emt 0:01:09]}
Qe7 {[%emt 0:04:25]} 30. Nxb7 {[%emt 0:00:08]} Qxb7 {[%emt 0:00:00]} 31. Qxd6 {
[%emt 0:00:04]} Qxb2 {[%emt 0:00:06] KQ-KQ} 32. Qe6+ {[%emt 0:02:28]} Kf8 {
[%emt 0:00:08]} 33. Qc8+ {[%emt 0:00:20]} Kf7 {[%emt 0:00:00]} 34. Qxa6 {
[%emt 0:06:47]} Qc1+ {[%emt 0:01:02]} 35. Kh2 {[%emt 0:00:05] [#] Hoping for
Qb7+.} Qf4+ {[%emt 0:00:09]} 36. Kg1 {[%emt 0:00:03] Qb7+ is the strong threat.
} Qc1+ {[%emt 0:00:07]} 37. Kh2 {[%emt 0:00:10] Threatens to win with Qa7+.}
Ke6 $2 {[%emt 0:00:21] Weighted Error Value: White=0.02 (flawless) /Black=0.01
(flawless) . An unexpected result.} (37... Qf4+ $11 38. Kh1 Qc1+ 39. Kh2)
1/2-1/2

[Event "44th Chess Olympiad Open 2022"]
[Site "Chennai"]
[Date "2022.08.01"]
[Round "4.10"]
[White "Tabatabaei, M. Amin"]
[Black "Noritsyn, Nikolay"]
[Result "1-0"]
[WhiteElo "2664"]
[BlackElo "2482"]
[Annotator "TA"]
[PlyCount "119"]
[EventDate "2022.??.??"]
[TimeControl "60"]

{[%evp 9,119,24,25,30,39,23,34,28,26,18,27,8,25,0,0,0,12,0,0,0,0,0,27,15,13,5,
7,7,15,15,26,19,27,21,74,58,59,67,70,12,13,16,66,65,66,44,29,12,53,53,53,52,51,
47,47,49,64,23,111,110,131,95,123,109,89,81,212,212,618,589,29953,29956,29948,
29952,29958,29959,29960,29962,29962,29962,29963,29963,29961,29962,29962,29963,
29972,29963,29959,29960,29958,29949,29960,29962,29967,29966,29968,29968,29966,
29961,4752,4133,29973,29974,1278,1278,29983,29984,29991,29985,29988,29989]} 1.
d4 {[%emt 0:00:07]} e6 {[%emt 0:00:08]} 2. c4 {[%emt 0:00:16]} d5 {[%emt 0:00:
00]} 3. Nf3 {[%emt 0:01:01]} a6 {[%emt 0:00:14]} 4. Bg5 {[%emt 0:00:29]} Be7 {
[%emt 0:00:11]} 5. Bxe7 {[%emt 0:00:18]} Nxe7 {[%emt 0:00:13]} 6. Nbd2 {
[%emt 0:07:10] D30: Queen's Gambit Declined: Systems without Nc3.} Nd7 {
[%emt 0:00:15]} 7. Rc1 {[%emt 0:06:23]} O-O {[%emt 0:00:17]} 8. Qc2 $1 {
[%emt 0:01:40] White is slightly better.} dxc4 {[%emt 0:01:06]} 9. Qxc4 {
[%emt 0:00:44]} c6 {[%emt 0:00:13] [#]} 10. e3 $146 {[%emt 0:08:47]} ({
Predecessor:} 10. e4 b6 11. Qc2 Bb7 12. Nc4 c5 13. Nd6 Qb8 14. Nxb7 Qxb7 15.
Rd1 Rac8 16. Qb1 {0-1 (48) Tomic,A (2324)-Blagojevic,D (2491) Podgorica 2022})
10... b6 {[%emt 0:00:17]} 11. Qc2 {[%emt 0:03:30]} Bb7 {[%emt 0:03:40]} 12. Bd3
{[%emt 0:00:29]} h6 {[%emt 0:01:10]} 13. Ne4 {[%emt 0:01:57]} c5 {[%emt 0:00:
00]} 14. dxc5 {[%emt 0:00:09]} Rc8 {[%emt 0:01:05]} 15. Rd1 {[%emt 0:03:54]}
Nf5 {[%emt 0:20:07][%cal Rd7c5]} 16. Qe2 {[%emt 0:16:00]} bxc5 {[%emt 0:03:56]}
17. O-O {[%emt 0:00:46]} c4 {[%emt 0:07:40]} 18. Bb1 {[%emt 0:01:30]
Threatening Ne5.} Qe7 {[%emt 0:01:19]} 19. Nd4 {[%emt 0:02:16]} (19. Rd2 {
looks sharper.} Rfd8 20. Rfd1 Nb6 21. Rxd8+ Rxd8 22. Rxd8+ Qxd8 23. Qd2) 19...
Bxe4 {[%emt 0:08:21]} 20. Bxe4 {[%emt 0:00:16]} Nxd4 {[%emt 0:00:16]} 21. Rxd4
{[%emt 0:00:11]} c3 {[%emt 0:07:21] [#]} (21... Nb6 $1 $11) 22. bxc3 $1 $16 {
[%emt 0:17:06]} Rxc3 {[%emt 0:00:28]} 23. Qxa6 {[%emt 0:03:06]} Nc5 {[%emt 0:
00:00] Inhibits Qb7.} 24. Qa5 {[%emt 0:01:57] White is more active.} (24. Qc6
$14) 24... Nxe4 $11 {[%emt 0:01:39]} 25. Rxe4 {[%emt 0:00:21]} Qa3 {[%emt 0:00:
00]} (25... Qc7 $11 26. Qxc7 Rxc7) 26. Ra4 $1 $14 {[%emt 0:00:43]} Qb2 {
[%emt 0:00:39]} 27. h4 {[%emt 0:02:15]} Rfc8 {[%emt 0:01:54] Hoping for ...Rc1.
} 28. Rd4 {[%emt 0:04:04][%cal Ya4d4,Yd4d8,Yd8c8,Yc8c7,Yc7f7]} Ra3 {[%emt 0:18:
32]} 29. Rd8+ {[%emt 0:00:48]} Kh7 $1 {[%emt 0:02:37]} 30. Qxa3 {[%emt 0:00:31]
} Qxa3 {[%emt 0:00:06]} 31. Rxc8 {[%emt 0:00:05]} Qxa2 {[%emt 0:00:00] Endgame
KQ-KRR} 32. Rc7 {[%emt 0:02:56]} Kg6 {[%emt 0:00:21]} 33. h5+ {[%emt 0:07:44]}
Kxh5 {[%emt 0:00:58]} (33... Kf6 $1 $11) 34. Rxf7 $16 {[%emt 0:00:02]} Kg6 {
[%emt 0:00:30]} 35. Rf3 {[%emt 0:00:31]} h5 {[%emt 0:00:00]} 36. Rd1 {[%emt 0:
00:07]} Kh6 {[%emt 0:01:21]} 37. Rf7 {[%emt 0:00:49]} g6 {[%emt 0:01:06] [#]
This move loses the game for Black.} (37... g5 $16 {is a better defense.}) 38.
Kh2 $1 $18 {[%emt 0:01:48] Strongly threatening Rd6.} e5 $2 {[%emt 0:01:54]} (
38... Qb2 39. Rd8 g5) 39. Rf6 {[%emt 0:00:53] White wants to mate with Rdd6.}
Qe2 {[%emt 0:01:14]} 40. Rdd6 {[%emt 0:00:40]} Kh7 {[%emt 0:00:24]} 41. Rde6 {
[%emt 0:32:58]} Qb2 {[%emt 0:15:09]} 42. Kg3 {[%emt 0:00:00]} e4 {[%emt 0:08:
02]} 43. Rxg6 {[%emt 0:00:00]} Qb8+ {[%emt 0:00:00]} 44. Rd6 {[%emt 0:00:00]}
Qb5 {[%emt 0:01:04]} 45. Rge6 {[%emt 0:00:00]} Kg8 {[%emt 0:05:27]} 46. Rb6 {
[%emt 0:00:00]} Qd5 {[%emt 0:01:43]} 47. Kh2 {[%emt 0:00:00]} h4 {[%emt 0:01:
06]} 48. Rg6+ {[%emt 0:00:00]} Kf7 {[%emt 0:00:00]} 49. Rbf6+ {[%emt 0:00:00]}
Ke7 {[%emt 0:00:09]} 50. Rf4 {[%emt 0:00:00]} h3 {[%emt 0:00:18]} 51. g3 {
[%emt 0:00:00]} Qa2 {[%emt 0:01:07]} 52. Rh6 {[%emt 0:00:00]} Kd7 {[%emt 0:00:
28]} 53. Rxh3 {[%emt 0:00:00]} Kd6 {[%emt 0:00:00]} 54. Kg2 {[%emt 0:00:00]}
Kd5 {[%emt 0:00:29]} 55. Rh5+ {[%emt 0:00:00]} Kc4 {[%emt 0:00:10]} 56. Rxe4+ {
[%emt 0:00:00]} Kd3 {[%emt 0:00:08]} 57. Rd4+ {[%emt 0:00:00]} Ke2 {[%emt 0:00:
22]} 58. Rhd5 {[%emt 0:00:00] White mates.} Qa8 {[%emt 0:00:20]} 59. g4 {
[%emt 0:00:00]} Qb7 {[%emt 0:00:30]} 60. e4 {[%emt 0:00:00] Weighted Error
Value: White=0.07 (flawless) /Black=0.34} 1-0